[Event "Titled Tuesday Blitz May 9 Early 2023"]
[White "Sreyas Payyappat"]
[Black "Goswami, Vedant"]
[WhiteFideId "46674969"]
[BlackFideId "5003725"]
[WhiteElo "2043"]
[BlackElo "2011"]
[Result "1-0"]
[Round "11"]
[TimeControl "180+2"]
[Date "2023.05.09"]
[WhiteClock "0:00:02"]
[BlackClock "0:00:00"]

1. e4 {[%clk 0:02:58]}  a6 {[%clk 0:02:57]} 2. d4 {[%clk 0:02:58]}  e6 {[%clk 0:02:56]} 3. c4 {[%clk 0:02:57]}  d6 {[%clk 0:02:55]} 4. Nc3 {[%clk 0:02:57]}  g6 {[%clk 0:02:52]} 5. Nf3 {[%clk 0:02:56]}  Bg7 {[%clk 0:02:51]} 6. Bd3 {[%clk 0:02:56]}  Nc6 {[%clk 0:02:50]} 7. Be3 {[%clk 0:02:54]}  e5 {[%clk 0:02:47]} 8. d5 {[%clk 0:02:54]}  Nce7 {[%clk 0:02:44]} 9. c5 {[%clk 0:02:52]}  f5 {[%clk 0:02:41]} 10. cxd6 {[%clk 0:02:45]}  cxd6 {[%clk 0:02:40]} 11. Qb3 {[%clk 0:02:38]}  Nf6 {[%clk 0:02:26]} 12. Bb6 {[%clk 0:02:21]}  Qd7 {[%clk 0:02:24]} 13. Nb5 {[%clk 0:02:18]}  O-O {[%clk 0:01:55]} 14. Nc7 {[%clk 0:02:15]}  Rb8 {[%clk 0:01:51]} 15. Ne6 {[%clk 0:02:02]}  fxe4 {[%clk 0:01:44]} 16. Nxf8 {[%clk 0:01:53]}  Bxf8 {[%clk 0:01:40]} 17. Nxe5 {[%clk 0:01:43]}  Qf5 {[%clk 0:01:02]} 18. Nc4 {[%clk 0:01:28]}  exd3 {[%clk 0:01:00]} 19. O-O {[%clk 0:01:23]}  Qxd5 {[%clk 0:00:54]} 20. Bc7 {[%clk 0:01:22]}  Be6 {[%clk 0:00:42]} 21. Bxb8 {[%clk 0:01:14]}  Qxc4 {[%clk 0:00:42]} 22. Qxc4 {[%clk 0:01:15]}  Bxc4 {[%clk 0:00:42]} 23. Bxd6 {[%clk 0:01:12]}  Ne4 {[%clk 0:00:35]} 24. Bxe7 {[%clk 0:01:10]}  Bxe7 {[%clk 0:00:34]} 25. Rfe1 {[%clk 0:01:08]}  Bd5 {[%clk 0:00:30]} 26. Re3 {[%clk 0:00:47]}  d2 {[%clk 0:00:26]} 27. Rd3 {[%clk 0:00:35]}  Bc6 {[%clk 0:00:18]} 28. a4 {[%clk 0:00:19]}  Bc5 {[%clk 0:00:17]} 29. Kf1 {[%clk 0:00:19]}  Bb4 {[%clk 0:00:09]} 30. Ke2 {[%clk 0:00:15]}  a5 {[%clk 0:00:08]} 31. b3 {[%clk 0:00:13]}  Nc5 {[%clk 0:00:07]} 32. Re3 {[%clk 0:00:10]}  Kf7 {[%clk 0:00:05]} 33. Rd1 {[%clk 0:00:10]}  Kf6 {[%clk 0:00:05]} 34. f3 {[%clk 0:00:10]}  Bd5 {[%clk 0:00:04]} 35. Rb1 {[%clk 0:00:08]}  Bc6 {[%clk 0:00:03]} 36. Rb2 {[%clk 0:00:07]}  Bd5 {[%clk 0:00:03]} 37. Kd1 {[%clk 0:00:06]}  Bc6 {[%clk 0:00:04]} 38. Rxd2 {[%clk 0:00:04]}  Bxd2 {[%clk 0:00:03]} 39. Kxd2 {[%clk 0:00:04]}  Bd5 {[%clk 0:00:03]} 40. Kc2 {[%clk 0:00:03]}  Be6 {[%clk 0:00:01]} 41. Rc3 {[%clk 0:00:03]}  b6 {[%clk 0:00:01]} 42. Re3 {[%clk 0:00:03]}  Kf5 {[%clk 0:00:01]} 43. g3 {[%clk 0:00:03]}  Kf6 {[%clk 0:00:02]} 44. h3 {[%clk 0:00:02]}  g5 {[%clk 0:00:02]} 45. g4 {[%clk 0:00:02]}  Bd5 {[%clk 0:00:02]} 46. Kb2 {[%clk 0:00:02]}  Ne6 {[%clk 0:00:02]} 47. Kc3 {[%clk 0:00:03]}  Bc6 {[%clk 0:00:01]} 48. b4 {[%clk 0:00:02]}  axb4+ {[%clk 0:00:01]} 49. Kxb4 {[%clk 0:00:02]}  Nd4 {[%clk 0:00:01]} 50. Kc4 {[%clk 0:00:02]}  Nxf3 {[%clk 0:00:00]} 51. a5 {[%clk 0:00:02]} 1-0


[Site "https://www.chess.com"]

[Event "Titled Tuesday Blitz May 9 Early 2023"]
[White "Tuleyeva-Aketayeva, Dana"]
[Black "Fernandez Siles, Luis"]
[WhiteFideId "13701932"]
[BlackFideId "2209420"]
[WhiteElo "2030"]
[BlackElo "2195"]
[Result "1-0"]
[Round "11"]
[TimeControl "180+2"]
[Date "2023.05.09"]
[WhiteClock "0:00:07"]
[BlackClock "0:00:00"]

1. d4 {[%clk 0:03:00]}  Nf6 {[%clk 0:02:59]} 2. Nf3 {[%clk 0:03:01]}  g6 {[%clk 0:03:00]} 3. g3 {[%clk 0:03:02]}  Bg7 {[%clk 0:03:00]} 4. Bg2 {[%clk 0:03:03]}  O-O {[%clk 0:03:01]} 5. O-O {[%clk 0:03:03]}  d6 {[%clk 0:03:01]} 6. c4 {[%clk 0:03:03]}  c6 {[%clk 0:03:02]} 7. Nc3 {[%clk 0:03:03]}  Qa5 {[%clk 0:03:02]} 8. Bg5 {[%clk 0:02:55]}  h6 {[%clk 0:02:58]} 9. Bxf6 {[%clk 0:02:53]}  Bxf6 {[%clk 0:02:58]} 10. Ne4 {[%clk 0:02:47]}  Bg7 {[%clk 0:02:55]} 11. Qd2 {[%clk 0:02:45]}  Qxd2 {[%clk 0:02:53]} 12. Nexd2 {[%clk 0:02:45]}  c5 {[%clk 0:02:44]} 13. dxc5 {[%clk 0:02:36]}  dxc5 {[%clk 0:02:43]} 14. Rab1 {[%clk 0:02:31]}  Nc6 {[%clk 0:02:35]} 15. Nb3 {[%clk 0:02:27]}  Bf5 {[%clk 0:02:32]} 16. Rbd1 {[%clk 0:02:22]}  Bc2 {[%clk 0:01:56]} 17. Rd7 {[%clk 0:02:02]}  Bxb3 {[%clk 0:01:54]} 18. axb3 {[%clk 0:02:02]}  b6 {[%clk 0:01:50]} 19. Nd2 {[%clk 0:01:56]}  Rac8 {[%clk 0:01:48]} 20. Bxc6 {[%clk 0:01:51]}  Rxc6 {[%clk 0:01:48]} 21. Rxa7 {[%clk 0:01:48]}  e6 {[%clk 0:01:48]} 22. Nf3 {[%clk 0:01:27]}  Bxb2 {[%clk 0:01:42]} 23. Rd1 {[%clk 0:01:27]}  Rcc8 {[%clk 0:01:31]} 24. Rdd7 {[%clk 0:01:25]}  Rcd8 {[%clk 0:01:29]} 25. Rdb7 {[%clk 0:01:18]}  e5 {[%clk 0:01:17]} 26. Ra2 {[%clk 0:00:59]}  Bc3 {[%clk 0:01:09]} 27. Rc2 {[%clk 0:00:57]}  Bd4 {[%clk 0:00:51]} 28. e3 {[%clk 0:00:35]}  e4 {[%clk 0:00:50]} 29. Nxd4 {[%clk 0:00:26]}  cxd4 {[%clk 0:00:50]} 30. exd4 {[%clk 0:00:26]}  Rxd4 {[%clk 0:00:50]} 31. Rxb6 {[%clk 0:00:27]}  Ra8 {[%clk 0:00:45]} 32. Kg2 {[%clk 0:00:25]}  h5 {[%clk 0:00:46]} 33. c5 {[%clk 0:00:25]}  h4 {[%clk 0:00:32]} 34. c6 {[%clk 0:00:19]}  hxg3 {[%clk 0:00:28]} 35. hxg3 {[%clk 0:00:19]}  Rdd8 {[%clk 0:00:28]} 36. c7 {[%clk 0:00:19]}  Rdc8 {[%clk 0:00:28]} 37. b4 {[%clk 0:00:17]}  Kg7 {[%clk 0:00:29]} 38. b5 {[%clk 0:00:17]}  Ra7 {[%clk 0:00:29]} 39. Rbc6 {[%clk 0:00:17]}  Rb7 {[%clk 0:00:30]} 40. b6 {[%clk 0:00:17]}  Kf8 {[%clk 0:00:30]} 41. Rd2 {[%clk 0:00:14]}  Ke7 {[%clk 0:00:30]} 42. Rd4 {[%clk 0:00:12]}  Ke8 {[%clk 0:00:24]} 43. Rcd6 {[%clk 0:00:07]}  Rcxc7 {[%clk 0:00:19]} 44. bxc7 {[%clk 0:00:07]}  Rxc7 {[%clk 0:00:19]} 45. Rxe4+ {[%clk 0:00:07]}  Kf8 {[%clk 0:00:20]} 46. Red4 {[%clk 0:00:07]}  Kg7 {[%clk 0:00:20]} 47. Rd7 {[%clk 0:00:07]}  Rc6 {[%clk 0:00:18]} 48. Ra4 {[%clk 0:00:07]}  Rf6 {[%clk 0:00:18]} 49. Raa7 {[%clk 0:00:07]}  Rf5 {[%clk 0:00:18]} 50. Rd6 {[%clk 0:00:07]}  g5 {[%clk 0:00:17]} 51. Rd3 {[%clk 0:00:07]}  g4 {[%clk 0:00:13]} 52. Rad7 {[%clk 0:00:08]}  Kf8 {[%clk 0:00:12]} 53. R3d5 {[%clk 0:00:07]}  Rf6 {[%clk 0:00:11]} 54. Rg5 {[%clk 0:00:07]}  Ke8 {[%clk 0:00:11]} 55. Rd4 {[%clk 0:00:06]}  Ra6 {[%clk 0:00:07]} 56. Rdxg4 {[%clk 0:00:06]}  Ke7 {[%clk 0:00:07]} 57. Re4+ {[%clk 0:00:06]}  Kf6 {[%clk 0:00:07]} 58. Rgg4 {[%clk 0:00:07]}  Kf5 {[%clk 0:00:08]} 59. Rgf4+ {[%clk 0:00:08]}  Kg6 {[%clk 0:00:08]} 60. Rd4 {[%clk 0:00:07]}  f6 {[%clk 0:00:07]} 61. Rg4+ {[%clk 0:00:08]}  Kf7 {[%clk 0:00:07]} 62. Rh4 {[%clk 0:00:08]}  Kg6 {[%clk 0:00:07]} 63. Rb4 {[%clk 0:00:08]}  Rd6 {[%clk 0:00:07]} 64. Ra4 {[%clk 0:00:08]}  Re6 {[%clk 0:00:07]} 65. Rhg4+ {[%clk 0:00:08]}  Kf5 {[%clk 0:00:06]} 66. Rgf4+ {[%clk 0:00:08]}  Kg5 {[%clk 0:00:06]} 67. Rh4 {[%clk 0:00:08]}  Re2 {[%clk 0:00:05]} 68. Rag4+ {[%clk 0:00:07]}  Kf5 {[%clk 0:00:05]} 69. Rf4+ {[%clk 0:00:07]}  Kg5 {[%clk 0:00:06]} 70. Rhg4+ {[%clk 0:00:07]}  Kh5 {[%clk 0:00:06]} 71. Rg8 {[%clk 0:00:07]}  Re4 {[%clk 0:00:00]} 72. Rxe4 {[%clk 0:00:07]} 1-0


[Site "https://www.chess.com"]

[Event "Titled Tuesday Blitz May 9 Early 2023"]
[White "Begunov, Konstantin"]
[Black "Korpics, Zsolt"]
[WhiteFideId "4118510"]
[BlackFideId "705241"]
[WhiteElo "2050"]
[BlackElo "2348"]
[Result "1-0"]
[Round "11"]
[TimeControl "180+2"]
[Date "2023.05.09"]
[WhiteClock "0:01:34"]
[BlackClock "0:02:37"]

1. d4 {[%clk 0:02:57]}  Nf6 {[%clk 0:02:59]} 2. c4 {[%clk 0:02:57]}  e6 {[%clk 0:02:59]} 3. Nf3 {[%clk 0:02:57]}  b6 {[%clk 0:02:59]} 4. g3 {[%clk 0:02:57]}  Ba6 {[%clk 0:02:59]} 5. Qa4 {[%clk 0:02:57]}  Bb7 {[%clk 0:02:59]} 6. Bg2 {[%clk 0:02:57]}  c5 {[%clk 0:02:59]} 7. dxc5 {[%clk 0:02:58]}  Bxc5 {[%clk 0:02:58]} 8. Nc3 {[%clk 0:02:58]}  O-O {[%clk 0:02:57]} 9. O-O {[%clk 0:02:59]}  Be7 {[%clk 0:02:57]} 10. Rd1 {[%clk 0:02:59]}  d6 {[%clk 0:02:57]} 11. Bf4 {[%clk 0:02:57]}  a6 {[%clk 0:02:56]} 12. Qc2 {[%clk 0:02:54]}  Qc7 {[%clk 0:02:55]} 13. b3 {[%clk 0:02:46]}  Nbd7 {[%clk 0:02:55]} 14. Rd2 {[%clk 0:02:40]}  Rac8 {[%clk 0:02:54]} 15. Rad1 {[%clk 0:02:39]}  e5 {[%clk 0:02:49]} 16. Bg5 {[%clk 0:02:39]}  b5 {[%clk 0:02:49]} 17. Bxf6 {[%clk 0:02:08]}  Nxf6 {[%clk 0:02:44]} 18. Ng5 {[%clk 0:01:41]}  Bxg2 {[%clk 0:02:41]} 19. Kxg2 {[%clk 0:01:42]}  bxc4 {[%clk 0:02:41]} 20. Nd5 {[%clk 0:01:35]}  Nxd5 {[%clk 0:02:37]} 21. Qxh7# {[%clk 0:01:34]} 1-0


[Site "https://www.chess.com"]

[Event "Titled Tuesday Blitz May 9 Early 2023"]
[White "Panda Sambit"]
[Black "Levitan, Caleb Levi"]
[WhiteFideId "25091794"]
[BlackFideId "14332620"]
[WhiteElo "2272"]
[BlackElo "1963"]
[Result "1/2-1/2"]
[Round "11"]
[TimeControl "180+2"]
[Date "2023.05.09"]
[WhiteClock "0:00:11"]
[BlackClock "0:00:02"]

1. e4 {[%clk 0:03:00]}  e5 {[%clk 0:02:57]} 2. Nf3 {[%clk 0:03:00]}  Nc6 {[%clk 0:02:57]} 3. Bb5 {[%clk 0:02:59]}  a6 {[%clk 0:02:57]} 4. Ba4 {[%clk 0:02:59]}  Nf6 {[%clk 0:02:57]} 5. O-O {[%clk 0:02:57]}  Bc5 {[%clk 0:02:53]} 6. Bxc6 {[%clk 0:02:56]}  bxc6 {[%clk 0:02:43]} 7. d3 {[%clk 0:02:55]}  d6 {[%clk 0:02:40]} 8. c3 {[%clk 0:02:39]}  Bb6 {[%clk 0:02:37]} 9. Nbd2 {[%clk 0:02:37]}  O-O {[%clk 0:02:37]} 10. Nc4 {[%clk 0:02:33]}  Be6 {[%clk 0:02:30]} 11. Qe2 {[%clk 0:02:24]}  Bxc4 {[%clk 0:02:25]} 12. dxc4 {[%clk 0:02:25]}  Qe7 {[%clk 0:02:22]} 13. Bg5 {[%clk 0:02:20]}  h6 {[%clk 0:02:21]} 14. Be3 {[%clk 0:02:14]}  Bxe3 {[%clk 0:02:17]} 15. Qxe3 {[%clk 0:02:14]}  Rab8 {[%clk 0:02:17]} 16. b4 {[%clk 0:02:13]}  Qe6 {[%clk 0:02:15]} 17. Nd2 {[%clk 0:02:10]}  d5 {[%clk 0:02:10]} 18. c5 {[%clk 0:02:01]}  dxe4 {[%clk 0:02:04]} 19. Nxe4 {[%clk 0:02:00]}  Nd5 {[%clk 0:02:02]} 20. Qe2 {[%clk 0:01:58]}  f5 {[%clk 0:02:01]} 21. Ng3 {[%clk 0:01:46]}  Nxc3 {[%clk 0:01:57]} 22. Qxa6 {[%clk 0:01:45]}  f4 {[%clk 0:01:48]} 23. Ne2 {[%clk 0:01:39]}  f3 {[%clk 0:01:14]} 24. gxf3 {[%clk 0:01:33]}  Nd5 {[%clk 0:01:09]} 25. a3 {[%clk 0:01:21]}  Rxf3 {[%clk 0:01:03]} 26. Qc4 {[%clk 0:01:21]}  Rbf8 {[%clk 0:00:43]} 27. Rae1 {[%clk 0:01:18]}  h5 {[%clk 0:00:38]} 28. Ng3 {[%clk 0:01:10]}  R8f4 {[%clk 0:00:31]} 29. Qe2 {[%clk 0:01:05]}  h4 {[%clk 0:00:31]} 30. Ne4 {[%clk 0:00:24]}  Qh3 {[%clk 0:00:17]} 31. Kh1 {[%clk 0:00:20]}  Qf5 {[%clk 0:00:13]} 32. Rg1 {[%clk 0:00:17]}  Rh3 {[%clk 0:00:10]} 33. Rg5 {[%clk 0:00:10]}  Qf7 {[%clk 0:00:04]} 34. Reg1 {[%clk 0:00:10]}  Rhf3 {[%clk 0:00:01]} 35. Rxg7+ {[%clk 0:00:09]}  Qxg7 {[%clk 0:00:02]} 36. Rxg7+ {[%clk 0:00:09]}  Kxg7 {[%clk 0:00:03]} 37. Ng5 {[%clk 0:00:08]}  Rxf2 {[%clk 0:00:03]} 38. Ne6+ {[%clk 0:00:09]}  Kf6 {[%clk 0:00:03]} 39. Nxf4 {[%clk 0:00:10]}  Rxf4 {[%clk 0:00:03]} 40. b5 {[%clk 0:00:09]}  cxb5 {[%clk 0:00:03]} 41. Qxb5 {[%clk 0:00:09]}  Ne3 {[%clk 0:00:02]} 42. Qc6+ {[%clk 0:00:09]}  Kf5 {[%clk 0:00:02]} 43. h3 {[%clk 0:00:09]}  Rf1+ {[%clk 0:00:02]} 44. Kh2 {[%clk 0:00:09]}  Rf2+ {[%clk 0:00:02]} 45. Kg1 {[%clk 0:00:09]}  Rf1+ {[%clk 0:00:02]} 46. Kh2 {[%clk 0:00:10]}  Rf2+ {[%clk 0:00:03]} 47. Kh1 {[%clk 0:00:10]}  Rf1+ {[%clk 0:00:02]} 48. Kh2 {[%clk 0:00:11]} 1/2-1/2


[Site "https://www.chess.com"]

[Event "Titled Tuesday Blitz May 9 Early 2023"]
[White "Sargissyan, Sargis"]
[Black "Ramirez, Maria Eugenia"]
[WhiteFideId "13303210"]
[BlackFideId "3301680"]
[WhiteElo "2109"]
[BlackElo "1842"]
[Result "0-1"]
[Round "11"]
[TimeControl "180+2"]
[Date "2023.05.09"]
[WhiteClock "0:00:00"]
[BlackClock "0:00:05"]

1. e4 {[%clk 0:03:00]}  e5 {[%clk 0:02:59]} 2. Nf3 {[%clk 0:03:00]}  Nc6 {[%clk 0:03:00]} 3. Bb5 {[%clk 0:03:01]}  Nd4 {[%clk 0:02:59]} 4. Nxd4 {[%clk 0:03:00]}  exd4 {[%clk 0:02:59]} 5. Bc4 {[%clk 0:02:59]}  h5 {[%clk 0:02:58]} 6. O-O {[%clk 0:02:55]}  Bc5 {[%clk 0:02:57]} 7. d3 {[%clk 0:02:47]}  c6 {[%clk 0:02:55]} 8. c3 {[%clk 0:02:47]}  d5 {[%clk 0:02:51]} 9. exd5 {[%clk 0:02:47]}  cxd5 {[%clk 0:02:51]} 10. Bb5+ {[%clk 0:02:32]}  Kf8 {[%clk 0:02:49]} 11. cxd4 {[%clk 0:02:27]}  Bxd4 {[%clk 0:02:46]} 12. Re1 {[%clk 0:02:25]}  Be6 {[%clk 0:02:44]} 13. Nc3 {[%clk 0:02:22]}  Nf6 {[%clk 0:02:41]} 14. Qf3 {[%clk 0:01:52]}  Qd6 {[%clk 0:02:16]} 15. Bf4 {[%clk 0:01:48]}  Qb6 {[%clk 0:02:13]} 16. a4 {[%clk 0:01:22]}  Bg4 {[%clk 0:02:10]} 17. Qg3 {[%clk 0:01:17]}  h4 {[%clk 0:02:03]} 18. Bd6+ {[%clk 0:01:17]}  Kg8 {[%clk 0:02:03]} 19. Qf4 {[%clk 0:01:18]}  Bxf2+ {[%clk 0:01:56]} 20. Qxf2 {[%clk 0:01:18]}  Qxd6 {[%clk 0:01:56]} 21. d4 {[%clk 0:01:13]}  h3 {[%clk 0:01:53]} 22. g3 {[%clk 0:01:12]}  Rc8 {[%clk 0:01:42]} 23. Re5 {[%clk 0:01:11]}  Be6 {[%clk 0:01:31]} 24. Rae1 {[%clk 0:01:06]}  Ng4 {[%clk 0:01:24]} 25. Qd2 {[%clk 0:00:32]}  Nxe5 {[%clk 0:01:22]} 26. Rxe5 {[%clk 0:00:33]}  a6 {[%clk 0:01:18]} 27. Bd3 {[%clk 0:00:33]}  Rh6 {[%clk 0:01:08]} 28. Qe3 {[%clk 0:00:24]}  Rf8 {[%clk 0:00:54]} 29. Ne2 {[%clk 0:00:23]}  Qb6 {[%clk 0:00:46]} 30. Nf4 {[%clk 0:00:22]}  Qxb2 {[%clk 0:00:44]} 31. Bf1 {[%clk 0:00:19]}  Bd7 {[%clk 0:00:36]} 32. Nxd5 {[%clk 0:00:16]}  Bc6 {[%clk 0:00:31]} 33. Nf4 {[%clk 0:00:16]}  Rf6 {[%clk 0:00:28]} 34. d5 {[%clk 0:00:16]}  Bxa4 {[%clk 0:00:26]} 35. Nxh3 {[%clk 0:00:14]}  Bb5 {[%clk 0:00:26]} 36. Bxb5 {[%clk 0:00:11]}  Qxb5 {[%clk 0:00:25]} 37. Nf4 {[%clk 0:00:11]}  g5 {[%clk 0:00:22]} 38. Ne2 {[%clk 0:00:08]}  Qb1+ {[%clk 0:00:18]} 39. Kg2 {[%clk 0:00:08]}  Rg6 {[%clk 0:00:18]} 40. Rxg5 {[%clk 0:00:07]}  Rxg5 {[%clk 0:00:17]} 41. Qxg5+ {[%clk 0:00:06]}  Qg6 {[%clk 0:00:18]} 42. Qe3 {[%clk 0:00:06]}  Qd6 {[%clk 0:00:15]} 43. Nf4 {[%clk 0:00:06]}  Rd8 {[%clk 0:00:13]} 44. Qf3 {[%clk 0:00:06]}  Qf6 {[%clk 0:00:11]} 45. Qg4+ {[%clk 0:00:06]}  Qg7 {[%clk 0:00:11]} 46. Qf5 {[%clk 0:00:06]}  Re8 {[%clk 0:00:10]} 47. h4 {[%clk 0:00:04]}  Re5 {[%clk 0:00:10]} 48. Qd3 {[%clk 0:00:03]}  Re8 {[%clk 0:00:06]} 49. d6 {[%clk 0:00:03]}  Rd8 {[%clk 0:00:06]} 50. Nd5 {[%clk 0:00:00]}  Qe5 {[%clk 0:00:05]} 0-1


[Site "https://www.chess.com"]

[Event "Titled Tuesday Blitz May 9 Early 2023"]
[White "Vidruska, Renate"]
[Black "Feinig, Mario"]
[WhiteFideId "11601841"]
[BlackFideId "1618113"]
[WhiteElo "1976"]
[BlackElo "2163"]
[Result "0-1"]
[Round "11"]
[TimeControl "180+2"]
[Date "2023.05.09"]
[WhiteClock "0:00:19"]
[BlackClock "0:00:06"]

1. e4 {[%clk 0:02:57]}  c5 {[%clk 0:02:58]} 2. Nf3 {[%clk 0:02:56]}  Nc6 {[%clk 0:02:57]} 3. d4 {[%clk 0:02:56]}  cxd4 {[%clk 0:02:57]} 4. Nxd4 {[%clk 0:02:57]}  g6 {[%clk 0:02:57]} 5. Nc3 {[%clk 0:02:53]}  Bg7 {[%clk 0:02:56]} 6. Be3 {[%clk 0:02:53]}  Nf6 {[%clk 0:02:55]} 7. f3 {[%clk 0:02:54]}  O-O {[%clk 0:02:53]} 8. Qd2 {[%clk 0:02:54]}  d5 {[%clk 0:02:53]} 9. Nxc6 {[%clk 0:01:56]}  bxc6 {[%clk 0:02:51]} 10. O-O-O {[%clk 0:01:55]}  Qa5 {[%clk 0:02:41]} 11. Kb1 {[%clk 0:01:55]}  Be6 {[%clk 0:02:23]} 12. Nxd5 {[%clk 0:01:47]}  Qa4 {[%clk 0:02:20]} 13. Nxe7+ {[%clk 0:01:35]}  Kh8 {[%clk 0:02:20]} 14. b3 {[%clk 0:01:36]}  Qa3 {[%clk 0:02:18]} 15. Nxg6+ {[%clk 0:01:35]}  hxg6 {[%clk 0:02:11]} 16. Bh6 {[%clk 0:01:35]}  a5 {[%clk 0:01:27]} 17. Bxg7+ {[%clk 0:01:34]}  Kxg7 {[%clk 0:01:28]} 18. Qc1 {[%clk 0:01:33]}  Qb4 {[%clk 0:01:26]} 19. Qd2 {[%clk 0:01:30]}  Qa3 {[%clk 0:01:24]} 20. Qc1 {[%clk 0:01:30]}  Qc5 {[%clk 0:01:24]} 21. g4 {[%clk 0:01:23]}  a4 {[%clk 0:01:22]} 22. g5 {[%clk 0:01:20]}  Nd7 {[%clk 0:01:17]} 23. Qb2+ {[%clk 0:01:20]}  Kg8 {[%clk 0:01:17]} 24. h4 {[%clk 0:01:16]}  axb3 {[%clk 0:01:17]} 25. cxb3 {[%clk 0:01:16]}  Rfb8 {[%clk 0:00:51]} 26. h5 {[%clk 0:01:11]}  Rxa2 {[%clk 0:00:42]} 27. Kxa2 {[%clk 0:01:03]}  Rxb3 {[%clk 0:00:34]} 28. Rxd7 {[%clk 0:00:32]}  Rxb2+ {[%clk 0:00:12]} 29. Kxb2 {[%clk 0:00:32]}  Qb4+ {[%clk 0:00:12]} 30. Kc1 {[%clk 0:00:31]}  Bxd7 {[%clk 0:00:06]} 31. Bd3 {[%clk 0:00:30]}  Qc3+ {[%clk 0:00:05]} 32. Bc2 {[%clk 0:00:29]}  Be6 {[%clk 0:00:04]} 33. hxg6 {[%clk 0:00:28]}  fxg6 {[%clk 0:00:04]} 34. Rd1 {[%clk 0:00:26]}  Bb3 {[%clk 0:00:03]} 35. Rd2 {[%clk 0:00:26]}  Qa1+ {[%clk 0:00:02]} 36. Bb1 {[%clk 0:00:26]}  Qc3+ {[%clk 0:00:02]} 37. Bc2 {[%clk 0:00:26]}  Bxc2 {[%clk 0:00:02]} 38. Rxc2 {[%clk 0:00:26]}  Qxf3 {[%clk 0:00:03]} 39. Rxc6 {[%clk 0:00:21]}  Qe3+ {[%clk 0:00:03]} 40. Kb2 {[%clk 0:00:19]}  Qxe4 {[%clk 0:00:04]} 41. Rc8+ {[%clk 0:00:19]}  Kf7 {[%clk 0:00:03]} 42. Rc7+ {[%clk 0:00:20]}  Ke6 {[%clk 0:00:04]} 43. Rc3 {[%clk 0:00:20]}  Qd4 {[%clk 0:00:03]} 44. Kc2 {[%clk 0:00:20]}  Kf5 {[%clk 0:00:03]} 45. Rf3+ {[%clk 0:00:19]}  Kxg5 {[%clk 0:00:03]} 46. Rd3 {[%clk 0:00:19]}  Qe4 {[%clk 0:00:03]} 47. Kd2 {[%clk 0:00:20]}  Kf4 {[%clk 0:00:03]} 48. Rd8 {[%clk 0:00:19]}  g5 {[%clk 0:00:02]} 49. Rf8+ {[%clk 0:00:19]}  Kg3 {[%clk 0:00:03]} 50. Rf1 {[%clk 0:00:20]}  Qf4+ {[%clk 0:00:01]} 51. Ke1 {[%clk 0:00:20]}  Qe3+ {[%clk 0:00:01]} 52. Kd1 {[%clk 0:00:20]}  g4 {[%clk 0:00:02]} 53. Re1 {[%clk 0:00:19]}  Qxe1+ {[%clk 0:00:01]} 54. Kxe1 {[%clk 0:00:20]}  Kg2 {[%clk 0:00:02]} 55. Ke2 {[%clk 0:00:20]}  g3 {[%clk 0:00:03]} 56. Ke3 {[%clk 0:00:21]}  Kh2 {[%clk 0:00:04]} 57. Kf4 {[%clk 0:00:22]}  g2 {[%clk 0:00:04]} 58. Ke4 {[%clk 0:00:22]}  g1=Q {[%clk 0:00:05]} 59. Kd3 {[%clk 0:00:22]}  Qg4 {[%clk 0:00:05]} 60. Kc3 {[%clk 0:00:23]}  Kg3 {[%clk 0:00:06]} 61. Kd3 {[%clk 0:00:23]}  Qf4 {[%clk 0:00:06]} 62. Kc3 {[%clk 0:00:24]}  Qe4 {[%clk 0:00:06]} 63. Kd2 {[%clk 0:00:19]}  Qf3 {[%clk 0:00:06]} 0-1


[Site "https://www.chess.com"]

[Event "Titled Tuesday Blitz May 9 Early 2023"]
[White "Omariev, Maksim"]
[Black "petr577"]
[WhiteFideId "4193423"]
[WhiteElo "2381"]
[BlackElo "2219"]
[Result "1-0"]
[Round "11"]
[TimeControl "180+2"]
[Date "2023.05.09"]
[WhiteClock "0:00:07"]
[BlackClock "0:00:00"]

1. e4 {[%clk 0:03:00]}  e6 {[%clk 0:03:00]} 2. d4 {[%clk 0:02:56]}  d5 {[%clk 0:03:00]} 3. Nc3 {[%clk 0:02:53]}  Bb4 {[%clk 0:03:00]} 4. exd5 {[%clk 0:02:52]}  exd5 {[%clk 0:02:59]} 5. Bd3 {[%clk 0:02:53]}  Nc6 {[%clk 0:02:43]} 6. a3 {[%clk 0:02:52]}  Bxc3+ {[%clk 0:02:41]} 7. bxc3 {[%clk 0:02:53]}  Nge7 {[%clk 0:02:39]} 8. Qf3 {[%clk 0:02:53]}  Be6 {[%clk 0:02:36]} 9. Ne2 {[%clk 0:02:53]}  Qd7 {[%clk 0:02:35]} 10. Ng3 {[%clk 0:02:53]}  O-O-O {[%clk 0:02:23]} 11. h3 {[%clk 0:02:52]}  h5 {[%clk 0:02:23]} 12. O-O {[%clk 0:02:50]}  Rdg8 {[%clk 0:02:19]} 13. Nxh5 {[%clk 0:02:47]}  f6 {[%clk 0:01:52]} 14. Rb1 {[%clk 0:02:40]}  b6 {[%clk 0:01:50]} 15. a4 {[%clk 0:02:35]}  Qe8 {[%clk 0:01:34]} 16. Nf4 {[%clk 0:02:34]}  Bf7 {[%clk 0:01:33]} 17. Re1 {[%clk 0:02:28]}  Qd7 {[%clk 0:01:25]} 18. Bb5 {[%clk 0:02:19]}  Qd6 {[%clk 0:01:23]} 19. Rb3 {[%clk 0:02:09]}  g5 {[%clk 0:01:19]} 20. Nd3 {[%clk 0:01:37]}  g4 {[%clk 0:01:19]} 21. hxg4 {[%clk 0:01:38]}  Qh2+ {[%clk 0:01:04]} 22. Kf1 {[%clk 0:01:39]}  Re8 {[%clk 0:00:40]} 23. Bf4 {[%clk 0:01:36]}  Qh7 {[%clk 0:00:26]} 24. Ke2 {[%clk 0:01:24]}  Bg6 {[%clk 0:00:23]} 25. Kd2 {[%clk 0:01:21]}  Be4 {[%clk 0:00:23]} 26. Qg3 {[%clk 0:01:22]}  Kb7 {[%clk 0:00:20]} 27. Bxc7 {[%clk 0:01:18]}  Rc8 {[%clk 0:00:19]} 28. Bd6 {[%clk 0:01:15]}  Na5 {[%clk 0:00:19]} 29. Rb2 {[%clk 0:01:08]}  Nc4+ {[%clk 0:00:19]} 30. Bxc4 {[%clk 0:01:08]}  Rxc4 {[%clk 0:00:20]} 31. Nc5+ {[%clk 0:01:04]}  Kc6 {[%clk 0:00:18]} 32. Nd3 {[%clk 0:00:39]}  Rc8 {[%clk 0:00:16]} 33. f3 {[%clk 0:00:34]}  Kd7 {[%clk 0:00:11]} 34. fxe4 {[%clk 0:00:32]}  dxe4 {[%clk 0:00:12]} 35. Rb3 {[%clk 0:00:21]}  Rxc3 {[%clk 0:00:13]} 36. Rxc3 {[%clk 0:00:19]}  Rxc3 {[%clk 0:00:13]} 37. Kxc3 {[%clk 0:00:20]}  Nd5+ {[%clk 0:00:13]} 38. Kb2 {[%clk 0:00:17]}  exd3 {[%clk 0:00:10]} 39. c4 {[%clk 0:00:15]}  Qh6 {[%clk 0:00:06]} 40. g5 {[%clk 0:00:10]}  Qh5 {[%clk 0:00:01]} 41. cxd5 {[%clk 0:00:09]}  d2 {[%clk 0:00:01]} 42. Rf1 {[%clk 0:00:08]}  d1=Q {[%clk 0:00:01]} 43. Rxd1 {[%clk 0:00:08]}  Qxd1 {[%clk 0:00:02]} 44. gxf6 {[%clk 0:00:08]}  Qxd4+ {[%clk 0:00:02]} 45. Kc2 {[%clk 0:00:07]}  Qc4+ {[%clk 0:00:02]} 46. Kb1 {[%clk 0:00:07]}  Qf1+ {[%clk 0:00:01]} 47. Ka2 {[%clk 0:00:07]}  Qc4+ {[%clk 0:00:00]} 48. Ka3 {[%clk 0:00:07]} 1-0


[Site "https://www.chess.com"]